[Event "WJCC U20 Open 2019"]
[Site "New Delhi"]
[Date "2019.10.18"]
[Round "5.40"]
[White "Mohd Saprin, Amir Ghaazi"]
[Black "Muradli, Mahammad"]
[Result "0-1"]
[ECO "A13"]
[WhiteElo "1942"]
[BlackElo "2459"]
[Annotator "RC"]
[PlyCount "88"]
[EventDate "2019.10.15"]
[EventType "swiss"]
[EventCountry "IND"]
[SourceTitle "playchess.com"]
[Source "ChessBase"]
[SourceQuality "1"]
[TimeControl "40/5400+30:1800+30"]

1. Nf3 Nf6 2. c4 e6 3. g3 d5 4. Bg2 dxc4 5. Qa4+ c6 6. Qxc4 b5 7. Qc2 Bb7 8. O-O Nbd7 9. d4 c5 10. Nc3 a6 11. Rd1 Rc8 12. d5 Nxd5 13. Nxd5 Bxd5 14. e4 Bc6 15. Ne5 Qc7 16. Nxc6 Qxc6 17. Bf4 c4 18. Rac1 Be7 19. Bd6 Bxd6 20. e5 Qc5 21. exd6 O-O 22. Qe4 Qe5 23. Qb7 Nc5 24. Qe7 Rce8 25. Qa7 Rd8 26. b3 Nd3 27. Rc2 Nb4 28. f4 Qf5 29. Re2 Qh5 30. Qe3 Nd3 31. Bf3 Qh6 32. bxc4 bxc4 33. Qd4 Qf6 34. Qxc4 Nb2 35. Rxb2 Qxb2 36. Qxa6 Rd7 37. Bc6 Qc2 38. Ba4 Qxa2 39. Qb5 Rfd8 40. Qb4 Ra7 41. Qb6 Raa8 42. Bb3 Qa7 43. Qxa7 Rxa7 44. Rc1 Rad7 0-1

[Event "WJCC U20 Open 2019"]
[Site "New Delhi"]
[Date "2019.10.18"]
[Round "5.42"]
[White "De Silva, L M S T"]
[Black "Aravena Navarro, Alexis Andres"]
[Result "1-0"]
[ECO "B30"]
[WhiteElo "1879"]
[BlackElo "2023"]
[Annotator "NA"]
[PlyCount "63"]
[EventDate "2019.10.15"]
[EventType "swiss"]
[EventCountry "IND"]
[SourceTitle "playchess.com"]
[Source "ChessBase"]
[SourceQuality "1"]
[TimeControl "40/5400+30:1800+30"]

1. e4 {[%emt 0:00:00]} c5 {[%emt 0:00:00]} 2. Nf3 {[%emt 0:00:00]} Nc6 {[%emt 0:00:03]} 3. Bb5 {[%emt 0:00:00]} e6 {[%emt 0:00:05]} 4. O-O {[%emt 0:00:00]} Nge7 {[%emt 0:00:06]} 5. Re1 {[%emt 0:00:04]} a6 {[%emt 0:00:04]} 6. Bf1 {[%emt 0:00:06]} b5 {[%emt 0:00:28]} 7. c3 {[%emt 0:01:47]} d5 {[%emt 0:04:43]} 8. exd5 {[%emt 0:01:56]} Nxd5 {[%emt 0:01:29]} 9. d4 {[%emt 0:01:22]} Bb7 {[%emt 0:05:11]} 10. a4 {[%emt 0:01:20]} Qb6 {[%emt 0:07:41]} 11. Ng5 {[%emt 0:06:02]} Be7 {[%emt 0:36:54]} 12. Qh5 {[%emt 0:04:42]} Nd8 {[%emt 0:15:43]} 13. axb5 {[%emt 0:03:25]} cxd4 {[%emt 0:07:07]} 14. bxa6 {[%emt 0:02:38]} dxc3 {[%emt 0:02:45]} 15. Nxc3 {[%emt 0:02:43]} Nxc3 {[%emt 0:00:18]} 16. bxc3 {[%emt 0:09:13]} Bxa6 {[%emt 0:00:46]} 17. Nxf7 {[%emt 0:09:32]} O-O {[%emt 0:07:19]} 18. Be3 {[%emt 0:01:30]} Qc6 {[%emt 0:05:26]} 19. Ne5 {[%emt 0:09:06]} Qc8 {[%emt 0:01:53]} 20. Rxa6 {[%emt 0:01:34]} Rxa6 {[%emt 0:00:01]} 21. Bd3 {[%emt 0:02:06]} g6 {[%emt 0:01:55]} 22. Nxg6 {[%emt 0:01:05]} Rf7 {[%emt 0:00:23]} 23. Nxe7+ {[%emt 0:02:14]} Rxe7 {[%emt 0:00:00]} 24. Bxa6 {[%emt 0:00:35]} Qxa6 {[%emt 0:00:47]} 25. Bc5 {[%emt 0:06:45]} Qa5 {[%emt 0:00:32]} 26. Rd1 {[%emt 0:00:44]} Nb7 {[%emt 0:00:45]} 27. Qg4+ {[%emt 0:00:09]} Kf7 {[%emt 0:00:13]} 28. Bxe7 {[%emt 0:00:14]} Kxe7 {[%emt 0:00:13]} 29. Qg7+ {[%emt 0:00:05]} Ke8 {[%emt 0:00:06]} 30. Qxb7 {[%emt 0:00:11]} Qxc3 {[%emt 0:00:02]} 31. Qd7+ {[%emt 0:00:34]} Kf8 {[%emt 0:00:00]} 32. Qxe6 {[%emt 0:00:16]} 1-0

[Event "WJCC U20 Open 2019"]
[Site "New Delhi"]
[Date "2019.10.18"]
[Round "5.43"]
[White "Dahanayake, Isara Banidu"]
[Black "Licheli, Luka"]
[Result "0-1"]
[ECO "B12"]
[WhiteElo "1771"]
[BlackElo "2010"]
[Annotator "NA RC"]
[PlyCount "50"]
[EventDate "2019.10.15"]
[EventType "swiss"]
[EventCountry "IND"]
[SourceTitle "playchess.com"]
[Source "ChessBase"]
[SourceQuality "1"]
[TimeControl "40/5400+30:1800+30"]

1. e4 {[%emt 0:00:00]} c6 {[%emt 0:00:00]} 2. d4 {[%emt 0:00:02]} d5 {[%emt 0:00:00]} 3. e5 {[%emt 0:00:12]} Bf5 {[%emt 0:03:11]} 4. h4 {[%emt 0:01:09]} h6 {[%emt 0:11:36]} 5. g4 {[%emt 0:00:36]} Bh7 {[%emt 0:00:09]} 6. e6 {[%emt 0:02:27]} fxe6 {[%emt 0:00:05]} 7. Bd3 {[%emt 0:00:28]} Bxd3 {[%emt 0:07:28]} 8. Qxd3 {[%emt 0:00:16]} Qd6 {[%emt 0:00:48]} 9. f4 {[%emt 0:04:20]} e5 {[%emt 0:28:09]} 10. fxe5 {[%emt 0:24:58]} Qe6 {[%emt 0:01:06]} 11. Qe2 {[%emt 0:20:15]} c5 {[%emt 0:19:17]} 12. c3 Nc6 {[%emt 0:05:22]} 13. Be3 {[%emt 0:25:06]} h5 {[%emt 0:01:12]} 14. g5 {[%emt 0:08:22]} Qf5 {[%emt 0:04:18]} 15. Nd2 {[%emt 0:03:35]} e6 {[%emt 0:01:15]} 16. a3 {[%emt 0:01:26]} Nge7 17. Rh2 {[%emt 0:01:51]} O-O-O {[%emt 0:03:41]} 18. Rc1 {[%emt 0:01:11]} Kb8 {[%emt 0:00:28]} 19. Nf1 {[%emt 0:01:53]} Qg6 {[%emt 0:02:30]} 20. Ng3 {[%emt 0:00:48]} Nf5 {[%emt 0:01:38]} 21. Qd3 {[%emt 0:00:34]} Nxh4 {[%emt 0:01:34]} 22. Qxg6 {[%emt 0:00:47]} Nxg6 {[%emt 0:00:01]} 23. Rxh5 {[%emt 0:00:18]} Be7 {[%emt 0:01:15]} 24. Nf3 {[%emt 0:00:17]} Rhf8 {[%emt 0:01:03]} 25. Ne2 {[%emt 0:01:01]} Rxf3 {[%emt 0:00:06]} 0-1

[Event "WJCC U20 Open 2019"]
[Site "New Delhi"]
[Date "2019.10.18"]
[Round "5.45"]
[White "Lama, Milan"]
[Black "Doluweera, Minul Sanjula"]
[Result "1/2-1/2"]
[ECO "B13"]
[WhiteElo "1976"]
[BlackElo "2191"]
[Annotator "NA"]
[PlyCount "100"]
[EventDate "2019.10.15"]
[EventType "swiss"]
[EventCountry "IND"]
[SourceTitle "playchess.com"]
[Source "ChessBase"]
[SourceQuality "1"]
[TimeControl "40/5400+30:1800+30"]

1. e4 {[%emt 0:00:00]} c6 {[%emt 0:00:19]} 2. d4 {[%emt 0:00:00]} d5 {[%emt 0:01:04]} 3. exd5 {[%emt 0:00:00]} cxd5 {[%emt 0:00:03]} 4. Bd3 {[%emt 0:00:00]} Nc6 {[%emt 0:00:04]} 5. c3 {[%emt 0:00:00]} Qc7 {[%emt 0:00:06]} 6. Nf3 {[%emt 0:00:10]} Bg4 {[%emt 0:00:16]} 7. O-O {[%emt 0:00:55]} e6 {[%emt 0:00:15]} 8. Re1 {[%emt 0:01:29]} Bd6 {[%emt 0:00:08]} 9. h3 {[%emt 0:00:17]} Bh5 {[%emt 0:00:50]} 10. Nbd2 {[%emt 0:01:49]} Nf6 {[%emt 0:04:24]} 11. Nf1 {[%emt 0:01:09]} O-O {[%emt 0:00:35]} 12. Bg5 {[%emt 0:00:56]} Nd7 {[%emt 0:04:13]} 13. Bh4 {[%emt 0:01:41]} Bg6 {[%emt 0:05:27]} 14. Bg3 {[%emt 0:02:17]} Rab8 {[%emt 0:06:57]} 15. Bxd6 {[%emt 0:05:32]} Qxd6 {[%emt 0:00:01]} 16. Ng3 {[%emt 0:01:17]} b5 {[%emt 0:00:54]} 17. Bxg6 {[%emt 0:02:13]} hxg6 {[%emt 0:00:02]} 18. Qd2 {[%emt 0:01:19]} b4 {[%emt 0:10:05]} 19. h4 {[%emt 0:04:28]} bxc3 {[%emt 0:14:24]} 20. bxc3 {[%emt 0:00:06]} Nf6 {[%emt 0:00:10]} 21. h5 {[%emt 0:13:10]} Nxh5 {[%emt 0:11:43]} 22. Nxh5 {[%emt 0:00:35]} gxh5 {[%emt 0:00:01]} 23. Qg5 {[%emt 0:00:22]} Qe7 {[%emt 0:00:46]} 24. Qxh5 {[%emt 0:00:46]} Qf6 {[%emt 0:00:40]} 25. Ng5 {[%emt 0:04:20]} Qh6 {[%emt 0:00:17]} 26. Qg4 {[%emt 0:01:43]} Ne7 {[%emt 0:03:00]} 27. Nf3 {[%emt 0:21:48]} Rb2 {[%emt 0:07:21]} 28. Rab1 {[%emt 0:10:13]} Rfb8 {[%emt 0:03:08]} 29. Rxb2 {[%emt 0:00:21]} Rxb2 {[%emt 0:00:02]} 30. Qg3 {[%emt 0:01:06]} Qg6 {[%emt 0:07:13]} 31. Qc7 {[%emt 0:06:44]} Qf6 {[%emt 0:05:05]} 32. Qxa7 {[%emt 0:02:07]} Ng6 {[%emt 0:01:52]} 33. Qa8+ {[%emt 0:01:37]} Kh7 {[%emt 0:00:21]} 34. Qa3 {[%emt 0:00:44]} Rc2 {[%emt 0:04:20]} 35. Qb3 {[%emt 0:01:06]} Qf5 {[%emt 0:00:02]} 36. Ng5+ {[%emt 0:07:16]} Kh6 {[%emt 0:00:01]} 37. Nxf7+ {[%emt 0:02:07]} Kh5 {[%emt 0:00:01]} 38. Rf1 {[%emt 0:03:34]} Nf4 {[%emt 0:04:12]} 39. c4 {[%emt 0:02:56]} Ne2+ {[%emt 0:06:27]} 40. Kh1 {[%emt 0:00:15]} Rc3 {[%emt 0:00:32]} 41. Qb8 {[%emt 0:31:30]} Ng3+ {[%emt 0:19:40]} 42. Kg1 {[%emt 0:00:00]} Nxf1 {[%emt 0:00:06]} 43. Qh8+ {[%emt 0:00:00]} Kg6 {[%emt 0:05:31]} 44. Ne5+ {[%emt 0:00:00]} Kg5 {[%emt 0:00:05]} 45. Qxg7+ {[%emt 0:00:00]} Kf4 {[%emt 0:00:03]} 46. Qh6+ {[%emt 0:00:00]} Qg5 {[%emt 0:00:02]} 47. Ng6+ {[%emt 0:00:00]} Kf5 {[%emt 0:00:02]} 48. Nh4+ {[%emt 0:00:00]} Kf4 {[%emt 0:01:09]} 49. Ng6+ {[%emt 0:01:19]} Kf5 {[%emt 0:00:02]} 50. Ne5 Qg4 1/2-1/2

[Event "WJCC U20 Open 2019"]
[Site "New Delhi"]
[Date "2019.10.19"]
[Round "6.1"]
[White "Karthikeyan, Murali"]
[Black "Shtembuliak, Evgeny"]
[Result "1/2-1/2"]
[ECO "B10"]
[WhiteElo "2617"]
[BlackElo "2577"]
[Annotator "ChessBase"]
[PlyCount "102"]
[EventDate "2019.10.15"]
[EventType "swiss"]
[EventCountry "IND"]
[SourceTitle "playchess.com"]
[Source "ChessBase"]
[SourceQuality "1"]
[TimeControl "40/5400+30:1800+30"]

1. e4 {[%emt 0:00:00]} c6 {[%emt 0:00:00]} 2. Nc3 {[%emt 0:03:59]} d5 {[%emt 0:00:00]} 3. Nf3 {[%emt 0:00:12]} dxe4 {[%emt 0:00:00]} 4. Nxe4 {[%emt 0:00:05]} Nf6 {[%emt 0:00:00]} 5. Nxf6+ {[%emt 0:01:41]} exf6 {[%emt 0:00:16]} 6. d4 {[%emt 0:00:12]} Bd6 {[%emt 0:00:05]} 7. Bd3 {[%emt 0:00:26]} O-O {[%emt 0:01:43]} 8. O-O {[%emt 0:00:18]} Bg4 {[%emt 0:01:34]} 9. h3 {[%emt 0:10:16]} Bh5 {[%emt 0:00:29]} 10. Be4 {[%emt 0:33:53]} Re8 {[%emt 0:04:25]} 11. Qd3 {[%emt 0:01:03]} Bg6 {[%emt 0:00:08]} 12. Bxg6 {[%emt 0:00:06]} hxg6 {[%emt 0:00:02]} 13. Bd2 {[%emt 0:01:04]} Nd7 {[%emt 0:01:12]} 14. Rfe1 {[%emt 0:01:31]} Qc7 {[%emt 0:03:35]} 15. c4 {[%emt 0:13:27]} f5 {[%emt 0:06:00]} 16. Bg5 {[%emt 0:12:23]} b6 {[%emt 0:23:10]} 17. a3 {[%emt 0:02:51]} Nf8 {[%emt 0:06:41]} 18. b4 {[%emt 0:02:18]} Qd7 {[%emt 0:00:43]} 19. Bd2 {[%emt 0:03:56]} Bc7 {[%emt 0:06:51]} 20. Rad1 {[%emt 0:02:23]} Rad8 {[%emt 0:05:34]} 21. Rxe8 {[%emt 0:01:21]} Qxe8 {[%emt 0:00:01]} 22. Bg5 {[%emt 0:01:19]} f6 {[%emt 0:02:35]} 23. Bc1 {[%emt 0:00:06]} c5 {[%emt 0:06:17]} 24. bxc5 {[%emt 0:01:24]} bxc5 {[%emt 0:00:01]} 25. d5 {[%emt 0:00:18]} Bd6 {[%emt 0:00:30]} 26. Re1 {[%emt 0:01:58]} Qd7 {[%emt 0:00:29]} 27. h4 {[%emt 0:00:56]} Re8 {[%emt 0:01:28]} 28. Rxe8 {[%emt 0:01:08]} Qxe8 {[%emt 0:00:01]} 29. g3 {[%emt 0:00:55]} Nd7 {[%emt 0:01:49]} 30. Bf4 {[%emt 0:01:17]} Bxf4 {[%emt 0:04:38]} 31. gxf4 {[%emt 0:00:21]} Nb6 {[%emt 0:03:47]} 32. Kg2 {[%emt 0:00:29]} Kh7 {[%emt 0:01:51]} 33. Kg3 {[%emt 0:00:33]} Kh6 {[%emt 0:01:23]} 34. Nd2 {[%emt 0:01:40]} Qe1 {[%emt 0:01:19]} 35. Nf3 {[%emt 0:00:38]} Qe8 {[%emt 0:00:23]} 36. Kg2 {[%emt 0:00:49]} Kh7 {[%emt 0:06:03]} 37. Nd2 Qe1 {[%emt 0:02:14]} 38. Nf3 {[%emt 0:00:44]} Qc1 {[%emt 0:00:28]} 39. Nd2 {[%emt 0:00:36]} Qd1 {[%emt 0:00:22]} 40. d6 {[%emt 0:00:46]} Qg4+ {[%emt 0:02:31]} 41. Qg3 {[%emt 0:30:10]} Qxg3+ {[%emt 0:32:29]} 42. fxg3 {[%emt 0:00:00]} Kg8 {[%emt 0:00:00]} 43. Nb3 {[%emt 0:00:00]} Kf7 {[%emt 0:00:00]} 44. Nxc5 {[%emt 0:00:00]} Nxc4 {[%emt 0:00:00]} 45. d7 {[%emt 0:00:00]} Ke7 {[%emt 0:00:00]} 46. a4 {[%emt 0:00:00]} Nb6 {[%emt 0:00:00]} 47. Kf3 {[%emt 0:00:00]} Nxd7 {[%emt 0:00:00]} 48. Nxd7 {[%emt 0:00:00]} Kxd7 {[%emt 0:00:00]} 49. Ke3 {[%emt 0:00:00]} Ke6 {[%emt 0:00:00]} 50. Kd4 {[%emt 0:00:00]} Kd6 {[%emt 0:00:00]} 51. Kc4 {[%emt 0:00:00]} Kc6 {[%emt 0:00:00]} 1/2-1/2

[Event "WJCC U20 Open 2019"]
[Site "New Delhi"]
[Date "2019.10.19"]
[Round "6.2"]
[White "Iniyan, P."]
[Black "Hakobyan, Aram"]
[Result "0-1"]
[ECO "E12"]
[WhiteElo "2509"]
[BlackElo "2561"]
[Annotator "ChessBase"]
[PlyCount "58"]
[EventDate "2019.10.15"]
[EventType "swiss"]
[EventCountry "IND"]
[SourceTitle "playchess.com"]
[Source "ChessBase"]
[SourceQuality "1"]
[TimeControl "40/5400+30:1800+30"]

1. d4 {[%emt 0:00:00]} Nf6 {[%emt 0:00:00]} 2. c4 {[%emt 0:00:02]} e6 {[%emt 0:00:00]} 3. Nf3 {[%emt 0:00:03]} b6 {[%emt 0:02:39]} 4. Bf4 {[%emt 0:00:05]} Bb4+ {[%emt 0:01:17]} 5. Nfd2 {[%emt 0:00:11]} Bb7 {[%emt 0:02:45]} 6. a3 {[%emt 0:00:06]} Be7 {[%emt 0:01:35]} 7. Nc3 {[%emt 0:00:06]} Nh5 {[%emt 0:02:53]} 8. Bg3 {[%emt 0:01:19]} d6 {[%emt 0:02:14]} 9. e3 {[%emt 0:01:02]} g6 {[%emt 0:00:28]} 10. Nf3 {[%emt 0:08:54]} Nd7 {[%emt 0:00:50]} 11. Be2 {[%emt 0:04:37]} Bf6 {[%emt 0:00:59]} 12. Qc2 {[%emt 0:02:21]} Qe7 {[%emt 0:04:15]} 13. Nb5 {[%emt 0:01:54]} Nxg3 {[%emt 0:03:13]} 14. hxg3 {[%emt 0:00:08]} Qd8 {[%emt 0:00:49]} 15. Bd3 {[%emt 0:06:27]} O-O {[%emt 0:02:23]} 16. O-O-O {[%emt 0:16:50]} Re8 {[%emt 0:14:10]} 17. Nc3 {[%emt 0:04:06]} d5 {[%emt 0:03:36]} 18. e4 {[%emt 0:14:02]} c5 {[%emt 0:05:39]} 19. exd5 {[%emt 0:13:45]} cxd4 {[%emt 0:08:45]} 20. dxe6 {[%emt 0:00:16]} Rxe6 {[%emt 0:02:34]} 21. Be4 {[%emt 0:05:39]} dxc3 {[%emt 0:07:17]} 22. Bxb7 {[%emt 0:00:06]} cxb2+ {[%emt 0:05:33]} 23. Kb1 {[%emt 0:00:00]} Qe7 {[%emt 0:00:41]} 24. Bxa8 {[%emt 0:09:32]} Qxa3 {[%emt 0:00:09]} 25. Qd3 {[%emt 0:00:07]} Qa1+ {[%emt 0:00:38]} 26. Kc2 {[%emt 0:00:03]} Qa2 {[%emt 0:00:27]} 27. Rb1 {[%emt 0:00:19]} Nc5 {[%emt 0:00:06]} 28. Qd5 {[%emt 0:01:08]} Qb3+ {[%emt 0:00:15]} 29. Kd2 {[%emt 0:00:07]} Bc3# {[%emt 0:00:07]} 0-1

[Event "WJCC U20 Open 2019"]
[Site "New Delhi"]
[Date "2019.10.19"]
[Round "6.3"]
[White "Sargsyan, Shant"]
[Black "Raghunandan, Kaumandur Srihari"]
[Result "1/2-1/2"]
[ECO "B23"]
[WhiteElo "2580"]
[BlackElo "2449"]
[Annotator "ChessBase"]
[PlyCount "62"]
[EventDate "2019.10.15"]
[EventType "swiss"]
[EventCountry "IND"]
[SourceTitle "playchess.com"]
[Source "ChessBase"]
[SourceQuality "1"]
[TimeControl "40/5400+30:1800+30"]

1. e4 {[%emt 0:02:16]} c5 {[%emt 0:00:00]} 2. Nc3 {[%emt 0:00:18]} a6 {[%emt 0:01:43]} 3. Nf3 {[%emt 0:00:26]} d6 {[%emt 0:00:10]} 4. g3 {[%emt 0:00:29]} g6 {[%emt 0:03:24]} 5. Bg2 {[%emt 0:01:20]} Bg7 {[%emt 0:00:08]} 6. d4 {[%emt 0:00:18]} cxd4 {[%emt 0:00:08]} 7. Nxd4 {[%emt 0:00:05]} Nf6 {[%emt 0:00:13]} 8. O-O {[%emt 0:01:26]} O-O {[%emt 0:00:08]} 9. h3 {[%emt 0:05:26]} Nc6 {[%emt 0:00:40]} 10. Be3 {[%emt 0:01:59]} Bd7 {[%emt 0:02:44]} 11. Nd5 {[%emt 0:06:34]} Rc8 {[%emt 0:09:19]} 12. Rc1 {[%emt 0:03:51]} b5 {[%emt 0:33:10]} 13. Re1 {[%emt 0:03:07]} Re8 {[%emt 0:01:54]} 14. Kh2 {[%emt 0:06:34]} Ne5 {[%emt 0:07:31]} 15. b3 {[%emt 0:01:45]} Nc6 {[%emt 0:00:47]} 16. c3 {[%emt 0:06:01]} e6 {[%emt 0:14:12]} 17. Nxf6+ {[%emt 0:03:31]} Bxf6 {[%emt 0:00:08]} 18. Qd2 {[%emt 0:01:27]} Qc7 {[%emt 0:09:30]} 19. f4 {[%emt 0:03:03]} e5 {[%emt 0:02:12]} 20. Nxc6 {[%emt 0:01:46]} Bxc6 {[%emt 0:00:15]} 21. f5 {[%emt 0:01:57]} gxf5 {[%emt 0:00:16]} 22. exf5 {[%emt 0:02:28]} Bxg2 {[%emt 0:00:16]} 23. Qxg2 {[%emt 0:00:32]} Kh8 {[%emt 0:01:34]} 24. Qd5 {[%emt 0:02:27]} Kg8 {[%emt 0:05:12]} 25. Red1 {[%emt 0:01:42]} Qc6 {[%emt 0:01:23]} 26. Qxd6 {[%emt 0:07:45]} Qf3 {[%emt 0:00:31]} 27. Qd2 {[%emt 0:14:45]} Red8 {[%emt 0:00:07]} 28. Qf2 {[%emt 0:02:12]} Qxf2+ {[%emt 0:00:06]} 29. Bxf2 {[%emt 0:00:02]} Rxd1 {[%emt 0:00:12]} 30. Rxd1 {[%emt 0:00:01]} Rxc3 {[%emt 0:00:09]} 31. Rd2 {[%emt 0:01:00]} h5 {[%emt 0:01:44]} 1/2-1/2

[Event "WJCC U20 Open 2019"]
[Site "New Delhi"]
[Date "2019.10.19"]
[Round "6.4"]
[White "Praggnanandhaa R"]
[Black "Agmanov, Zhandos"]
[Result "1-0"]
[ECO "A05"]
[WhiteElo "2567"]
[BlackElo "2403"]
[Annotator "ChessBase"]
[PlyCount "103"]
[EventDate "2019.10.15"]
[EventType "swiss"]
[EventCountry "IND"]
[SourceTitle "playchess.com"]
[Source "ChessBase"]
[SourceQuality "1"]
[TimeControl "40/5400+30:1800+30"]

1. Nf3 {[%emt 0:00:07]} Nf6 {[%emt 0:01:37]} 2. g3 {[%emt 0:00:19]} b6 {[%emt 0:03:13]} 3. Bg2 {[%emt 0:00:27]} Bb7 {[%emt 0:00:13]} 4. O-O {[%emt 0:01:03]} e6 {[%emt 0:01:13]} 5. c4 {[%emt 0:00:21]} Be7 {[%emt 0:02:02]} 6. Nc3 {[%emt 0:00:51]} O-O {[%emt 0:01:12]} 7. Re1 {[%emt 0:01:34]} d5 {[%emt 0:04:30]} 8. cxd5 {[%emt 0:00:34]} exd5 {[%emt 0:01:23]} 9. d4 {[%emt 0:00:19]} Na6 {[%emt 0:01:11]} 10. Bf4 {[%emt 0:16:01]} c5 {[%emt 0:04:32]} 11. Rc1 {[%emt 0:16:30]} h6 {[%emt 0:08:56]} 12. a3 {[%emt 0:02:12]} Re8 {[%emt 0:18:54]} 13. Ne5 {[%emt 0:16:18]} Nc7 {[%emt 0:23:54]} 14. dxc5 {[%emt 0:03:11]} Bxc5 {[%emt 0:03:34]} 15. Nd3 {[%emt 0:09:19]} Bd6 {[%emt 0:01:21]} 16. Qa4 {[%emt 0:03:08]} Ne4 {[%emt 0:02:45]} 17. Nxe4 {[%emt 0:08:51]} dxe4 {[%emt 0:00:20]} 18. Bxd6 {[%emt 0:01:25]} Qxd6 {[%emt 0:00:07]} 19. Red1 {[%emt 0:01:19]} Qe7 {[%emt 0:13:55]} 20. Nf4 {[%emt 0:04:38]} Red8 {[%emt 0:02:16]} 21. Rxd8+ {[%emt 0:01:15]} Qxd8 {[%emt 0:00:13]} 22. Bxe4 {[%emt 0:02:25]} Bxe4 {[%emt 0:00:25]} 23. Qxe4 {[%emt 0:00:03]} Qe8 {[%emt 0:01:21]} 24. Qb7 {[%emt 0:06:55]} Nb5 {[%emt 0:00:51]} 25. e3 {[%emt 0:01:32]} Nd6 {[%emt 0:00:36]} 26. Qc6 {[%emt 0:01:22]} Rd8 {[%emt 0:00:29]} 27. Qxe8+ {[%emt 0:00:54]} Nxe8 {[%emt 0:00:01]} 28. Kf1 {[%emt 0:00:28]} Kf8 {[%emt 0:00:38]} 29. Ke2 {[%emt 0:00:16]} Ke7 {[%emt 0:00:00]} 30. g4 {[%emt 0:00:16]} g6 {[%emt 0:01:15]} 31. h3 {[%emt 0:00:50]} Rd7 {[%emt 0:01:26]} 32. Rc8 {[%emt 0:00:38]} Nd6 {[%emt 0:00:10]} 33. Nd5+ {[%emt 0:00:32]} Ke6 {[%emt 0:00:07]} 34. Nf4+ {[%emt 0:00:02]} Ke7 {[%emt 0:00:16]} 35. Rh8 {[%emt 0:00:25]} Nc4 {[%emt 0:00:56]} 36. Nd3 {[%emt 0:00:09]} Rc7 {[%emt 0:00:06]} 37. Kd1 {[%emt 0:01:26]} Rd7 {[%emt 0:00:13]} 38. Kc2 {[%emt 0:00:25]} Rc7 {[%emt 0:00:08]} 39. Nf4 {[%emt 0:00:35]} Ne5+ {[%emt 0:02:37]} 40. Kb3 {[%emt 0:00:15]} Rd7 {[%emt 0:00:11]} 41. Rc8 {[%emt 0:02:34]} Nf3 {[%emt 0:03:26]} 42. Kc3 {[%emt 0:07:30]} Ne5 {[%emt 0:06:21]} 43. e4 {[%emt 0:11:47]} Nf3 {[%emt 0:04:48]} 44. Nd5+ {[%emt 0:03:50]} Kd6 {[%emt 0:00:02]} 45. Kd3 {[%emt 0:03:10]} f5 {[%emt 0:02:37]} 46. Ke3 {[%emt 0:00:46]} Ng5 {[%emt 0:01:08]} 47. f3 {[%emt 0:00:46]} fxe4 {[%emt 0:00:57]} 48. fxe4 {[%emt 0:00:03]} Nxh3 {[%emt 0:03:14]} 49. Rg8 {[%emt 0:00:51]} Kc5 {[%emt 0:08:13]} 50. Rxg6 {[%emt 0:00:16]} Rh7 {[%emt 0:00:30]} 51. Nf6 {[%emt 0:00:34]} Rh8 {[%emt 0:00:01]} 52. Rg8 {[%emt 0:00:56] Kd5} 1-0

[Event "WJCC U20 Open 2019"]
[Site "New Delhi"]
[Date "2019.10.19"]
[Round "6.5"]
[White "Santos Ruiz, Miguel"]
[Black "Mendonca, Leon Luke"]
[Result "1-0"]
[ECO "B91"]
[WhiteElo "2560"]
[BlackElo "2388"]
[Annotator "ChessBase"]
[PlyCount "99"]
[EventDate "2019.10.15"]
[EventType "swiss"]
[EventCountry "IND"]
[SourceTitle "playchess.com"]
[Source "ChessBase"]
[SourceQuality "1"]
[TimeControl "40/5400+30:1800+30"]

1. e4 {[%emt 0:00:00]} c5 {[%emt 0:00:00]} 2. Nf3 {[%emt 0:00:00]} d6 {[%emt 0:00:06]} 3. d4 {[%emt 0:00:00]} cxd4 {[%emt 0:00:15]} 4. Nxd4 {[%emt 0:00:00]} Nf6 {[%emt 0:00:15]} 5. Nc3 {[%emt 0:00:00]} a6 {[%emt 0:00:31]} 6. g3 {[%emt 0:00:00]} e5 {[%emt 0:01:17]} 7. Nde2 {[%emt 0:00:15]} Be7 {[%emt 0:04:51]} 8. Bg2 {[%emt 0:01:38]} O-O {[%emt 0:01:46]} 9. a4 {[%emt 0:00:58]} Be6 {[%emt 0:05:45]} 10. O-O {[%emt 0:01:00]} Nbd7 {[%emt 0:03:40]} 11. Be3 {[%emt 0:18:47]} Qa5 {[%emt 0:28:24]} 12. h3 {[%emt 0:14:06]} Rfc8 {[%emt 0:05:59]} 13. Qd2 {[%emt 0:05:52]} Bc4 {[%emt 0:05:49]} 14. Rfd1 {[%emt 0:10:45]} Qc7 {[%emt 0:05:31]} 15. Rdc1 {[%emt 0:08:40]} b5 {[%emt 0:08:31]} 16. b3 {[%emt 0:06:22]} b4 {[%emt 0:01:21]} 17. Na2 {[%emt 0:01:54]} Bxe2 {[%emt 0:00:48]} 18. Qxe2 {[%emt 0:00:08]} Qb7 {[%emt 0:01:52]} 19. Bd2 {[%emt 0:03:27]} a5 {[%emt 0:01:27]} 20. Rab1 {[%emt 0:01:24]} Bd8 {[%emt 0:02:00]} 21. c3 {[%emt 0:02:00]} bxc3 {[%emt 0:01:45]} 22. Nxc3 {[%emt 0:00:03]} Bb6 {[%emt 0:01:44]} 23. Nb5 {[%emt 0:00:57]} Rxc1+ {[%emt 0:06:28]} 24. Rxc1 {[%emt 0:00:35]} Bc5 {[%emt 0:00:09]} 25. Rd1 {[%emt 0:04:17]} Qb6 {[%emt 0:02:11]} 26. Qf3 {[%emt 0:01:07]} Nf8 {[%emt 0:04:45]} 27. Bf1 {[%emt 0:02:49]} Ne6 {[%emt 0:02:01]} 28. Bc4 {[%emt 0:00:44]} Nd4 {[%emt 0:02:01]} 29. Nxd4 {[%emt 0:00:20]} Bxd4 {[%emt 0:00:05]} 30. Bg5 {[%emt 0:02:55]} Qd8 {[%emt 0:00:42]} 31. Kg2 {[%emt 0:01:35]} h6 {[%emt 0:01:06]} 32. Bd2 {[%emt 0:00:09]} Qe7 {[%emt 0:00:55]} 33. h4 {[%emt 0:00:36]} Nd7 {[%emt 0:01:22]} 34. Rf1 {[%emt 0:02:58]} Nb6 {[%emt 0:01:04]} 35. Bb5 {[%emt 0:00:07]} Nd7 {[%emt 0:00:28]} 36. Bxh6 {[%emt 0:03:14]} gxh6 {[%emt 0:00:05]} 37. Qg4+ {[%emt 0:00:02]} Kh8 {[%emt 0:00:49]} 38. Bxd7 {[%emt 0:00:05]} Rg8 {[%emt 0:00:28]} 39. Qh5 {[%emt 0:00:35]} Qf6 {[%emt 0:00:27]} 40. Bf5 {[%emt 0:00:12]} Rb8 {[%emt 0:00:44]} 41. Rc1 {[%emt 0:30:48]} Bc5 {[%emt 0:07:40]} 42. Rc3 {[%emt 0:00:00]} Qg7 {[%emt 0:02:27]} 43. Qd1 {[%emt 0:00:00]} Rb4 {[%emt 0:06:25]} 44. Qd5 {[%emt 0:00:00]} Rd4 {[%emt 0:01:49]} 45. Qb7 {[%emt 0:00:00]} Rd2 {[%emt 0:03:46]} 46. Rxc5 {[%emt 0:00:00]} dxc5 {[%emt 0:00:18]} 47. Qb8+ {[%emt 0:00:00]} Qg8 {[%emt 0:00:17]} 48. Qxe5+ {[%emt 0:00:00]} Qg7 {[%emt 0:00:18]} 49. Qb8+ {[%emt 0:00:00]} Qg8 {[%emt 0:00:16]} 50. Qf4 {[%emt 0:00:00]} 1-0